bitfinex-derivatives/quotes_ETHF0:USTF0_20250502
["timestamp","ask_amount","ask_price","bid_price","bid_amount"]
[1746206063321,1.08375,1844.6,1844.5,49.64081]
[1746206063716,2.74565,1844.7,1844.6,1.08375]
[1746206063916,1.08375,1844.6,1844.5,48.557]
[1746206064420,1.08375,1844.6,1844.5,49.64076]
[1746206065017,3.01650057,1844.7,1844.6,1.08375]
[1746206067219,1.35462057,1844.6,1844.5,49.64077]
[1746206067417,2.94232057,1844.6,1844.5,49.64077]
[1746206067914,2.94232057,1844.6,1844.5,51.38207]
[1746206069519,0.27087057,1844.6,1844.5,52.24517]
[1746206069820,1.35455057,1844.8,1844.7,1.08364]
[1746206070218,3.82924415,1844.9,1844.7,1.7456]
[1746206070425,3.55837358,1844.9,1844.8,4.29144]
[1746206070615,3.55837358,1844.9,1844.8,5.15454]
[1746206071126,3.55837358,1844.9,1844.8,8.85054]
[1746206073019,4.64195358,1844.9,1844.8,8.85054]
[1746206073223,3.55837358,1844.9,1844.8,8.85054]
[1746206073424,1.35443057,1845.0,1844.9,1.08358]
[1746206073623,0.27087057,1845.0,1844.9,3.54618]
[1746206073927,1.35433057,1845.1,1845.0,1.08352]
[1746206074128,1.35433057,1845.1,1845.0,9.60242]
[1746206074626,1.08346,1845.1,1845.0,9.60242]
[1746206074929,1.35432057,1845.2,1845.1,1.08346]
[1746206075127,1.08345,1845.2,1845.1,3.54876]
[1746206075527,1.35432057,1845.2,1845.1,3.54876]
[1746206076022,1.35432057,1845.2,1845.1,2.67306]
[1746206076227,3.74932057,1845.2,1845.1,2.67306]
[1746206076525,3.74932057,1845.2,1845.1,1.5896]
[1746206076827,1.08346,1845.1,1845.0,7.98732]
[1746206077028,2.66566,1845.1,1845.0,7.98732]
[1746206077228,2.66566,1845.1,1845.0,5.88092]
[1746206077528,1.08346,1845.1,1845.0,5.88092]
[1746206077731,1.35427057,1845.2,1845.1,1.08346]
[1746206078030,1.35427057,1845.2,1845.1,2.67646]
[1746206079326,0.27087057,1845.2,1845.1,2.67646]
[1746206079734,5.78168415,1845.4,1845.3,1.08334]
[1746206080230,5.78168415,1845.4,1845.2,2.67635]
[1746206080231,1.08334,1845.3,1845.2,2.67635]
[1746206080529,1.08334,1845.3,1845.2,5.88415]
[1746206081232,7.51927415,1845.4,1845.3,1.08334]
[1746206081432,7.51927415,1845.4,1845.3,2.83364]
[1746206082628,4.64165358,1845.4,1845.3,2.83364]
[1746206082831,6.53052415,1845.4,1845.3,2.83364]
[1746206083136,2.97215057,1845.4,1845.3,5.4463]
[1746206083427,2.97215057,1845.4,1845.3,6.52964]
[1746206083925,2.97215057,1845.4,1845.3,3.696]
[1746206084130,2.97215057,1845.4,1845.2,4.29116]
[1746206084131,1.08334,1845.3,1845.2,3.2078]
[1746206084330,1.6606,1845.3,1845.2,1.0834]
[1746206084633,2.74396,1845.3,1845.2,1.0834]
[1746206085835,1.0834,1845.2,1845.1,2.66863]
[1746206086534,3.01486057,1845.3,1845.2,1.0834]
[1746206087333,3.01486057,1845.3,1845.2,4.2912]
[1746206087534,2.74399,1845.3,1845.2,4.2912]
[1746206088034,1.08339,1845.3,1845.2,4.2912]
[1746206088229,0.27087057,1845.4,1845.3,1.08334]
[1746206088230,1.08331,1845.4,1845.3,1.08334]
[1746206088430,1.35418057,1845.4,1845.3,1.08334]
[1746206088626,1.08334,1845.3,1845.2,5.97225]
[1746206088832,1.08334,1845.3,1845.2,4.29115]
[1746206089130,1.95007057,1845.4,1845.2,6.9038]
[1746206089336,2.76254,1845.4,1845.3,1.08334]
[1746206089535,2.76254,1845.4,1845.3,1.94644]
[1746206089835,3.03341057,1845.4,1845.3,0.8631]
[1746206090835,3.03341057,1845.4,1845.3,1.94644]
[1746206091430,3.03341057,1845.4,1845.3,0.8631]
[1746206091630,3.03341057,1845.4,1845.3,1.94644]
[1746206092534,3.03341057,1845.4,1845.3,0.8631]
[1746206092738,3.03341057,1845.4,1845.3,1.94644]
[1746206093141,3.03341057,1845.4,1845.3,5.64244]
[1746206093942,1.95007057,1845.4,1845.3,5.64244]
[1746206094131,3.03335057,1845.4,1845.3,5.64244]
[1746206094331,1.95007057,1845.4,1845.3,5.64244]
[1746206094624,1.6792,1845.4,1845.3,5.64244]
[1746206095039,2.19414057,1845.5,1845.4,1.08328]
[1746206095339,1.08328,1845.4,1845.3,6.48351]
[1746206095541,1.08328,1845.4,1845.3,5.64241]
[1746206095939,2.76168,1845.4,1845.3,5.64241]
[1746206096438,2.19410057,1845.5,1845.4,1.08328]
[1746206096634,2.19410057,1845.5,1845.4,4.29108]
[1746206097241,2.19410057,1845.5,1845.4,7.98708]
[1746206098345,3.91890057,1845.5,1845.4,7.98708]
[1746206099040,1.11087057,1845.5,1845.4,7.98708]
[1746206099232,3.55837358,1845.7,1845.5,1.08322]
[1746206099437,3.55837358,1845.7,1845.4,6.9038]
[1746206099438,3.55837358,1845.7,1845.6,4.29097]
[1746206099638,3.55837358,1845.7,1845.6,7.94697]
[1746206099838,3.55837358,1845.7,1845.6,48.74697]
[1746206100041,3.55837358,1845.7,1845.6,49.58947]
[1746206100239,5.32207419,1845.8,1845.7,1.08311]
[1746206100443,1.99733105,1845.9,1845.8,1.08305]
[1746206100746,1.99733105,1845.9,1845.8,4.29085]
[1746206100942,1.99733105,1845.9,1845.8,45.09085]
[1746206101143,1.99733105,1845.9,1845.8,48.78685]
[1746206102453,3.35119162,1845.9,1845.8,48.78685]
[1746206103345,1.35386057,1845.9,1845.8,48.78685]
[1746206103648,2.97016057,1845.9,1845.8,47.7038]
[1746206103851,2.97016057,1845.9,1845.8,48.78685]
[1746206104050,2.97016057,1845.9,1845.8,6.9038]
[1746206104251,1.88717057,1845.9,1845.8,4.29085]
[1746206104652,2.97016057,1845.9,1845.8,3.2078]
[1746206104949,1.35392057,1845.8,1845.7,44.496]
[1746206105150,3.78922057,1845.8,1845.7,44.496]
[1746206105651,3.78922057,1845.8,1845.7,3.696]
[1746206106047,3.78922057,1845.8,1845.6,5.13076]
[1746206106350,3.78922057,1845.8,1845.6,45.93076]
[1746206106351,3.08968057,1845.7,1845.6,45.93076]
[1746206106544,2.00657057,1845.7,1845.6,45.93076]
[1746206106745,1.7357,1845.7,1845.6,45.93076]
[1746206107156,2.00657057,1845.7,1845.6,45.93076]
[1746206107849,2.00657057,1845.7,1845.6,47.56576]
[1746206108946,1.7357,1845.7,1845.6,47.56576]
[1746206109346,0.27087057,1845.8,1845.7,1.08311]
[1746206109545,0.27087057,1845.8,1845.7,2.70801]
[1746206110152,0.27087057,1845.8,1845.7,6.40401]
[1746206111952,0.27087057,1845.9,1845.8,1.08305]
[1746206112251,1.35386057,1845.9,1845.8,1.6495]
[1746206112452,1.35398057,1845.7,1845.6,1.8964]
[1746206112847,1.0832,1845.6,1845.5,1.08322]
[1746206113042,3.3274,1845.6,1845.5,41.88322]
[1746206113249,4.41057,1845.6,1845.5,42.4495]
[1746206113444,1.35409057,1845.5,1845.4,6.18764]
[1746206113643,3.04609057,1845.5,1845.4,5.1044]
[1746206113847,1.96287057,1845.5,1845.4,4.29108]
[1746206114046,1.96287057,1845.5,1845.4,45.09108]
[1746206114455,3.04609057,1845.5,1845.4,45.09108]
[1746206114647,3.04609057,1845.5,1845.4,40.8]
[1746206114848,3.04609057,1845.5,1845.4,41.88328]
[1746206116153,3.04609057,1845.5,1845.4,45.57928]
[1746206116352,3.04609057,1845.5,1845.4,47.30958]
[1746206116554,0.27087057,1845.5,1845.4,47.30958]
[1746206116757,1.35409057,1845.5,1845.4,3.696]
[1746206117259,1.08328,1845.4,1845.3,1.8967]
[1746206117552,1.90258,1845.4,1845.3,1.8967]
[1746206118351,1.90258,1845.4,1845.2,4.2912]
[1746206118655,3.63664,1845.3,1845.2,5.9875]
[1746206118958,2.5533,1845.3,1845.2,5.9875]
[1746206119254,1.90262,1845.4,1845.3,1.08334]
[1746206119255,1.35419057,1845.4,1845.3,1.08334]
[1746206119455,0.27087057,1845.4,1845.3,2.77964]
[1746206120244,2.5533,1845.5,1845.4,1.08328]
[1746206120448,2.5533,1845.5,1845.4,5.98738]
[1746206120955,0.8131,1845.5,1845.4,5.98738]
[1746206121255,2.16719057,1845.5,1845.4,3.2078]
[1746206121455,3.83569057,1845.5,1845.4,4.29108]
[1746206121851,2.4816,1845.5,1845.4,1.08328]
[1746206122056,2.75247057,1845.5,1845.2,3.2078]
[1746206122252,1.6685,1845.4,1845.3,1.08334]
[1746206122453,1.6685,1845.4,1845.3,2.80694]
[1746206122654,3.47867057,1845.8,1845.3,45.23194]
[1746206122950,3.61919,1845.8,1845.7,1.08311]
[1746206123352,3.61915,1845.8,1845.7,1.08311]
[1746206123560,2.5361,1845.8,1845.7,1.08311]
[1746206123761,3.61915,1845.8,1845.7,2.71851]
[1746206124257,1.07607057,1845.9,1845.7,2.71851]
[1746206124258,1.35390057,1845.9,1845.8,1.08305]
[1746206124457,1.35390057,1845.9,1845.8,2.71845]
[1746206124959,3.67126,1846.0,1845.9,1.08299]
[1746206125352,1.08293,1846.0,1845.9,1.6354]
[1746206125652,3.67123,1846.0,1845.9,1.6354]
[1746206125852,1.08299,1845.9,1845.8,4.2908]
[1746206126057,2.81759,1845.9,1845.8,4.2908]
[1746206126256,0.8537,1846.0,1845.9,1.08299]
[1746206126453,8.94176438,1846.3,1846.2,1.08281]
[1746206126653,8.94176438,1846.3,1846.2,4.29061]
[1746206127160,8.94176438,1846.3,1846.2,7.98661]
[1746206127959,1.6518,1846.4,1846.3,1.08276]
[1746206128162,1.6518,1846.4,1846.3,2.71536]
[1746206128554,14.85576438,1846.8,1846.7,1.08252]
[1746206128555,8.94176438,1846.8,1846.7,1.08252]
[1746206128859,8.94176438,1846.8,1846.7,4.29032]
[1746206129052,8.94176438,1846.8,1846.7,48.78632]
[1746206129256,8.94176438,1846.8,1846.7,50.41892]
[1746206131462,8.94176438,1846.8,1846.7,55.41892]
[1746206131864,7.77942438,1846.8,1846.7,55.41892]
[1746206132161,5.36508438,1846.8,1846.7,55.41892]
[1746206132361,4.13513438,1846.8,1846.7,55.41892]
[1746206132562,1.49718438,1846.8,1846.7,55.82994899]
[1746206132764,0.27087057,1847.2,1847.1,1.08229]
[1746206133362,1.09877057,1847.3,1847.2,1.08223]
[1746206133664,1.09877057,1847.3,1847.2,2.75713]
[1746206134459,2.80087057,1847.3,1847.2,2.75713]
[1746206134755,0.27087057,1847.6,1847.3,1.08217]
[1746206134955,3.90518057,1847.6,1847.5,4.28985]
[1746206135160,11.51917057,1847.6,1847.5,4.28985]
[1746206137067,6.51917057,1847.6,1847.5,4.28985]
[1746206138166,2.82317057,1847.6,1847.5,4.28985]
[1746206138670,2.82317057,1847.6,1847.5,6.03825]
[1746206139968,0.27087057,1847.8,1847.7,1.08193]
[1746206140270,1.89407057,1847.8,1847.7,1.08193]
[1746206141466,0.8226,1847.9,1847.8,1.08188]
[1746206141967,2.4008,1847.9,1847.8,1.08188]
[1746206142366,2.4008,1847.9,1847.8,2.74548657]
[1746206142570,2.67167057,1847.9,1847.7,5.102]
[1746206142765,2.17532057,1847.9,1847.7,5.102]
[1746206143066,1.09347057,1847.9,1847.7,5.102]
[1746206143367,4.56055057,1847.8,1847.7,1.8942]
[1746206143572,1.08202,1847.6,1847.3,11.23431]
[1746206143772,1.08195,1847.7,1847.6,1.08195]
[1746206144270,3.696,1847.7,1847.5,1.8944]
[1746206144471,1.08199,1847.6,1847.5,1.8944]
[1746206144668,5.12499,1847.6,1847.5,1.8944]
[1746206144970,9.043,1847.6,1847.3,1.08212]
[1746206145168,1.87988,1847.5,1847.3,1.08212]
[1746206145369,1.87988,1847.5,1847.3,2.97672]
[1746206145570,1.08211,1847.4,1847.3,2.97672]
[1746206145872,1.08214,1847.4,1847.3,1.08217]
[1746206147270,0.7978,1847.5,1847.4,1.08211]
[1746206147468,0.7978,1847.5,1847.2,6.33188]
[1746206147469,0.8352,1847.6,1847.5,1.08205]
[1746206147971,4.27627057,1847.8,1847.6,1.08195]
[1746206147972,5.35819057,1847.8,1847.6,1.08195]
[1746206148269,1.08193,1847.7,1847.6,1.08195]
[1746206148572,9.05420057,1847.8,1847.6,1.08195]
[1746206148870,1.08193,1847.7,1847.5,2.80421]
[1746206149169,1.08199,1847.6,1847.5,1.7222]
[1746206149369,1.08208,1847.5,1847.4,1.08209]
[1746206149671,1.08204,1847.6,1847.5,1.08205]
[1746206149971,1.35285057,1847.7,1847.4,1.7222]
[1746206150158,3.696,1847.6,1847.5,1.08201]
[1746206150673,4.77799,1847.6,1847.5,1.08201]
[1746206150869,3.696,1847.6,1847.5,1.08201]
[1746206151171,4.77799,1847.6,1847.5,1.08201]
[1746206152160,1.08199,1847.6,1847.4,1.7222]
[1746206152365,0.27087057,1847.7,1847.5,1.08204]
[1746206152569,1.08203,1847.6,1847.4,1.7222]
[1746206152865,1.08195,1847.7,1847.5,1.082]
[1746206153061,1.08198,1847.7,1847.6,1.08199]
[1746206153571,1.08198,1847.7,1847.5,1.6703]
[1746206153572,1.08199,1847.6,1847.5,2.75232]
[1746206154472,1.08198,1847.7,1847.6,1.08198]
[1746206154668,1.08199,1847.6,1847.5,2.7523]
[1746206154867,1.08198,1847.7,1847.6,1.08198]
[1746206155270,4.77793,1847.7,1847.6,1.08198]
[1746206155470,3.696,1847.7,1847.6,1.08198]
[1746206156271,5.57553,1847.8,1847.7,1.08193]
[1746206156471,5.57552,1847.8,1847.7,1.08193]
[1746206156776,3.696,1847.8,1847.7,1.08193]
[1746206156971,3.696,1847.8,1847.7,4.28973]
[1746206157171,1.08183,1847.9,1847.7,5.6661]
[1746206157380,1.08181,1848.0,1847.9,1.08176]
[1746206157579,1.06277057,1848.1,1848.0,1.08176]
[1746206157580,2.14452057,1848.1,1848.0,1.08176]
[1746206157777,1.08176,1848.0,1847.9,4.28956]
[1746206157977,3.78179057,1848.1,1848.0,1.08176]
[1746206158173,7.47779057,1848.1,1848.0,1.6156]
[1746206158374,4.7777,1848.1,1848.0,43.49736]
[1746206158580,4.7777,1848.1,1848.0,42.4156]
[1746206158581,6.415,1848.1,1848.0,42.4156]
[1746206158780,6.415,1848.1,1848.0,40.8]
[1746206158980,1.08176,1848.0,1847.9,4.28957]
[1746206159181,2.71906,1848.0,1847.9,4.28957]
[1746206159381,2.71906,1848.0,1847.9,45.08957]
[1746206159782,2.71906,1848.0,1847.9,45.08962]
[1746206160684,2.71906,1848.0,1847.9,44.0078]
[1746206161086,6.41506,1848.0,1847.9,40.8]
[1746206161283,6.68593057,1848.0,1847.9,40.8]
[1746206161484,1.08199,1847.7,1847.5,2.7664]
[1746206161688,1.08199,1847.6,1847.5,2.76641]
[1746206162079,1.08199,1847.6,1847.5,43.56641]
[1746206162486,1.08198,1847.7,1847.6,1.08199]
[1746206162687,1.08198,1847.7,1847.6,2.76639]
[1746206162981,1.35285057,1847.7,1847.6,1.6844]
[1746206163286,1.35285057,1847.7,1847.5,40.8]
[1746206163287,1.08199,1847.6,1847.5,40.8]
[1746206163488,3.61879,1847.6,1847.5,40.8]
[1746206163789,3.88966057,1847.6,1847.5,40.8]
[1746206164290,7.58566057,1847.6,1847.5,40.8]
[1746206164593,1.08205,1847.5,1847.4,0.8119]
[1746206164779,2.82745,1847.5,1847.4,3.52091]
[1746206165090,2.82745,1847.5,1847.4,44.32091]
[1746206165290,6.52345,1847.5,1847.4,44.32091]
[1746206165485,6.52345,1847.5,1847.4,42.69401]
[1746206165683,6.52345,1847.5,1847.4,41.6119]
[1746206165989,7.38345,1847.5,1847.4,41.6119]
[1746206166182,7.65432057,1847.5,1847.4,0.8119]
[1746206166792,1.35304057,1847.3,1847.2,1.8947]
[1746206167083,1.08234,1847.0,1846.9,4.2902]
[1746206167283,2.5171,1847.2,1846.9,4.8978]
[1746206167589,1.08229,1847.1,1847.0,1.69]
[1746206167786,1.08226,1847.2,1847.1,1.08228]
[1746206167986,1.08226,1847.2,1847.1,2.5073]
[1746206168185,1.08226,1847.2,1847.1,5.7151]
[1746206168490,1.08226,1847.2,1847.1,6.79739]
[1746206168690,1.08226,1847.2,1847.1,5.7151]
[1746206169183,1.08226,1847.2,1847.1,2.5073]
[1746206170191,4.77826,1847.2,1847.1,2.5073]
[1746206172786,5.04913057,1847.2,1847.1,1.69]
[1746206172994,1.08229,1847.1,1847.0,1.8949]
[1746206173187,3.77766057,1847.1,1847.0,1.8949]
[1746206173385,4.64896057,1847.1,1847.0,1.8949]
[1746206174294,8.34496057,1847.1,1847.0,1.8949]
[1746206174588,5.04916057,1847.1,1847.0,1.8949]
[1746206174782,5.04916057,1847.1,1847.0,3.6187]
[1746206174983,6.68396057,1847.1,1847.0,3.6187]
[1746206176482,6.41309,1847.1,1847.0,4.70104]
[1746206177182,1.08229,1847.1,1847.0,4.70104]
[1746206177596,2.99603057,1847.2,1847.1,1.08229]
[1746206177798,2.99603057,1847.2,1847.1,2.82049]
[1746206177995,2.99603057,1847.2,1847.1,1.7382]
[1746206179199,6.69203057,1847.2,1847.1,1.7382]
[1746206180106,1.35316057,1847.1,1847.0,1.8949]
[1746206180304,2.95176057,1847.1,1847.0,1.8949]
[1746206180496,2.95176057,1847.1,1847.0,6.8057]
[1746206180693,2.68089,1847.1,1847.0,7.88804]
[1746206180896,1.5986,1847.1,1847.0,7.88804]
[1746206181605,2.68089,1847.1,1847.0,7.88804]
[1746206182003,1.08227,1847.2,1847.1,1.08229]
[1746206182200,3.696,1847.2,1847.1,2.71029]
[1746206182399,3.696,1847.2,1847.1,8.58099]
[1746206183302,1.08218,1847.3,1847.2,1.08223]
[1746206183499,1.35305057,1847.3,1847.2,3.54563]
[1746206183702,0.27087057,1847.3,1847.2,6.75343]
[1746206184499,0.27087057,1847.3,1847.2,5.6712]
[1746206184500,1.35304057,1847.3,1847.2,5.6712]
[1746206184705,1.35304057,1847.3,1847.2,0.8354]
[1746206185096,1.35304057,1847.3,1847.2,2.5346]
[1746206186210,1.08229,1847.1,1847.0,6.99269]
[1746206186509,3.54924,1847.2,1847.1,1.08229]
[1746206186709,1.08224,1847.2,1847.1,2.78149]
[1746206187007,1.35307057,1847.3,1847.2,1.08223]
[1746206187212,1.11737057,1847.4,1847.2,4.907]
[1746206187510,1.08217,1847.3,1847.2,5.98918]
[1746206187810,1.35302057,1847.4,1847.3,1.5877]
[1746206188013,1.35302057,1847.4,1847.3,2.66987]
[1746206188307,1.35302057,1847.4,1847.3,1.5877]
[1746206189506,1.08215,1847.4,1847.3,1.5877]
[1746206189716,1.35302057,1847.4,1847.3,2.66987]
[1746206190215,1.35302057,1847.4,1847.3,1.5877]
[1746206192113,2.16842057,1847.4,1847.3,1.5877]
[1746206192510,3.76112057,1847.4,1847.3,1.5877]
[1746206193514,3.49025,1847.4,1847.3,1.5877]
[1746206193915,2.67897057,1847.4,1847.2,3.2078]
[1746206194116,1.08223,1847.2,1847.1,0.812]
[1746206194321,1.08223,1847.2,1847.0,7.478]
[1746206194521,1.08223,1847.2,1847.1,2.66719]
[1746206195628,1.35306057,1847.3,1847.2,1.08223]
[1746206195819,1.35306057,1847.3,1847.2,6.69573]
[1746206196019,1.35306057,1847.3,1847.2,5.6135]
[1746206196416,1.35306057,1847.3,1847.2,3.48793]
[1746206196617,1.35306057,1847.3,1847.2,2.4057]
[1746206197525,1.08219,1847.3,1847.2,3.48793]
[1746206198118,1.08219,1847.3,1847.2,2.4057]
[1746206198528,2.4882,1847.4,1847.1,1.8948]
[1746206198529,1.35310057,1847.2,1847.1,1.8948]
[1746206200222,5.04910057,1847.2,1847.1,1.8948]
[1746206201126,4.77823,1847.2,1847.1,1.8948]
[1746206201931,4.77823,1847.2,1847.1,3.6073]
[1746206202219,4.77823,1847.2,1847.1,1.8948]
[1746206202423,5.04910057,1847.2,1847.1,1.8948]
[1746206205629,4.77823,1847.2,1847.1,2.97709]
[1746206205831,4.77823,1847.2,1847.1,1.8948]
[1746206206024,4.77823,1847.2,1847.1,2.97709]
[1746206206624,4.77823,1847.2,1847.1,3.79529]
[1746206207028,3.696,1847.2,1847.1,5.52089]
[1746206207334,5.30028186,1847.3,1847.2,1.08223]
[1746206207527,5.30028186,1847.3,1847.2,6.01563]
[1746206207834,5.30028186,1847.3,1847.2,14.65663]
[1746206209929,5.30028186,1847.3,1847.2,9.65663]
[1746206210737,1.08206,1847.5,1847.4,1.08211]
[1746206210934,1.08206,1847.5,1847.4,4.28991]
[1746206211429,2.20925057,1847.7,1847.6,1.08199]
[1746206211826,2.20925057,1847.7,1847.6,2.73059]
[1746206212031,1.35285057,1847.7,1847.6,2.73059]
[1746206213130,1.08198,1847.7,1847.6,2.73059]
[1746206213327,3.07599057,1847.8,1847.7,1.08193]
[1746206213633,0.27087057,1847.8,1847.7,2.73053]
[1746206213827,1.35275057,1847.8,1847.7,1.6486]
[1746206214025,3.07595057,1847.8,1847.7,1.6486]
[1746206214227,6.77195057,1847.8,1847.7,1.6486]
[1746206214521,5.69007057,1847.8,1847.6,4.28979]
[1746206214723,1.7232,1847.7,1847.6,5.93839]
[1746206215130,6.50113,1847.7,1847.6,4.8564]
[1746206215433,5.69007057,1847.7,1847.5,1.91511]
[1746206215628,2.493,1847.6,1847.5,3.62291]
[1746206216134,1.35292057,1847.5,1847.4,3.2078]
[1746206216431,3.82852057,1847.5,1847.4,3.2078]
[1746206216628,1.08211,1847.4,1847.3,1.08214]
[1746206216833,1.6339,1847.4,1847.3,1.08214]
[1746206217237,0.27087057,1847.5,1847.4,1.08211]
[1746206217430,1.90477057,1847.5,1847.4,1.08211]
[1746206217835,2.98682057,1847.5,1847.4,1.08211]
[1746206219133,2.98687057,1847.5,1847.3,5.99773]
[1746206219336,1.6346,1847.4,1847.3,5.99773]
[1746206219635,2.71671,1847.4,1847.3,5.99773]
[1746206220835,1.6346,1847.4,1847.3,5.99773]
[1746206221036,2.98758057,1847.4,1847.3,3.2078]
[1746206221940,9.8424,1847.4,1847.3,0.54155943]
[1746206222138,10.92451,1847.4,1847.3,0.54155943]
[1746206222339,1.08217,1847.3,1847.2,0.812]
[1746206222539,4.45777,1847.3,1847.2,0.812]
[1746206222931,9.45777,1847.3,1847.2,0.812]
[1746206223136,13.15377,1847.3,1847.2,0.812]
[1746206223442,8.15377,1847.3,1847.2,0.812]
[1746206224040,7.0716,1847.3,1847.2,1.89423]
[1746206224342,0.8057,1847.3,1847.2,1.89423]
[1746206224536,1.88787,1847.3,1847.2,1.89423]
[1746206225044,8.49996847,1847.4,1847.3,1.08217]
[1746206225235,8.49996847,1847.4,1847.3,3.59257]
[1746206225434,9.58207847,1847.4,1847.3,2.5104]
[1746206226542,7.85597847,1847.4,1847.3,3.59257]
[1746206226745,6.77386847,1847.4,1847.3,3.59257]
[1746206227440,7.85597847,1847.4,1847.3,2.5104]
[1746206227839,1.08217,1847.3,1847.2,0.812]
[1746206228039,2.80207,1847.3,1847.2,0.812]
[1746206228243,6.49807,1847.3,1847.2,0.812]
[1746206229144,11.49807,1847.3,1847.2,0.812]
[1746206229831,6.49807,1847.3,1847.2,0.812]
[1746206230443,11.49807,1847.3,1847.2,0.812]
[1746206230943,6.49807,1847.3,1847.2,0.812]
[1746206232945,12.48857552,1847.3,1847.2,0.812]
[1746206235243,12.48857552,1847.3,1847.2,2.495]
[1746206236748,6.49807,1847.3,1847.2,2.495]
[1746206237245,2.80207,1847.3,1847.2,3.57723]
[1746206237444,2.80207,1847.3,1847.2,2.495]
[1746206237746,2.80207,1847.3,1847.2,0.812]
[1746206238251,6.49807,1847.3,1847.2,0.812]
[1746206239539,6.49807,1847.3,1847.2,1e-05]
[1746206239739,11.49807,1847.3,1847.2,1e-05]
[1746206240046,1.08223,1847.2,1847.1,1.8282]
[1746206240238,11.17743,1847.2,1847.1,1.8282]
[1746206240441,1.08246,1846.8,1846.7,46.469]
[1746206240944,1.08246,1846.8,1846.7,44.0078]
[1746206241145,1.08252,1846.7,1846.6,1.8286]
[1746206241350,2.69352,1846.7,1846.6,1.8286]
[1746206241542,2.69352,1846.7,1846.6,42.6286]
[1746206241743,2.69352,1846.7,1846.6,40.8]
[1746206242044,2.69352,1846.7,1846.6,42.5115]
[1746206242954,1.08252,1846.7,1846.6,42.5115]
[1746206243151,1.08252,1846.7,1846.6,43.3663]
[1746206244049,1.08252,1846.7,1846.6,42.5115]
[1746206245049,1.08258,1846.6,1846.5,1.8287]
[1746206245254,3.62468,1846.6,1846.5,1.8287]
[1746206245452,1.08264,1846.5,1846.4,2.5659]
[1746206245750,2.78894,1846.5,1846.4,43.3659]
[1746206246149,4.77864,1846.5,1846.4,43.3659]
[1746206247256,1.08264,1846.5,1846.4,43.3659]
[1746206249153,4.77864,1846.5,1846.4,2.5659]
[1746206249456,6.45424,1846.5,1846.4,2.5659]
[1746206251550,4.77864,1846.5,1846.4,2.5659]
[1746206252259,1.08264,1846.5,1846.4,2.5659]
[1746206255057,2.76394,1846.5,1846.4,2.5659]
[1746206256054,6.45994,1846.5,1846.4,2.5659]
[1746206256356,4.77864,1846.5,1846.4,2.5659]
[1746206257257,1.08264,1846.5,1846.4,2.5659]
[1746206258658,1.08264,1846.5,1846.4,3.6486]
[1746206259051,1.08264,1846.5,1846.4,2.5659]
[1746206259961,1.08264,1846.5,1846.4,3.6486]
[1746206260655,1.08264,1846.5,1846.4,2.5659]
[1746206260959,1.08264,1846.5,1846.4,3.6486]
[1746206261154,1.08264,1846.5,1846.4,2.5659]
[1746206261652,1.08264,1846.5,1846.4,3.6486]
[1746206262563,1.08264,1846.5,1846.4,2.5659]
[1746206264562,1.08264,1846.5,1846.4,3.6486]
[1746206268362,4.35276984,1847.0,1846.6,2.70634]
[1746206268662,1.08244,1846.9,1846.8,1.08244]
[1746206268863,1.08244,1846.9,1846.8,3.68994]
[1746206269060,1.08244,1846.9,1846.8,2.6075]
[1746206269468,1.08244,1846.9,1846.8,3.68996]
[1746206269668,1.08244,1846.9,1846.8,2.6075]
[1746206269965,1.08244,1846.9,1846.8,3.68996]
[1746206270669,3.55546984,1847.0,1846.9,1.0824]
[1746206270964,3.55546984,1847.0,1846.9,5.935]
[1746206271171,5.30028186,1847.1,1847.0,1.08234]
[1746206271466,5.30028186,1847.1,1847.0,3.98098996]
[1746206271667,5.30028186,1847.1,1847.0,8.98098996]
[1746206271864,5.30028186,1847.1,1847.0,3.98098996]
[1746206272060,5.30028186,1847.1,1847.0,7.67698996]
[1746206272262,8.82225479,1847.3,1847.0,11.59464996]
[1746206272463,8.82225479,1847.3,1847.2,4.29003]
[1746206272664,3.84690033,1847.3,1847.2,4.29003]
[1746206272871,3.84690033,1847.3,1847.2,52.55603]
[1746206273072,10.7642471,1847.6,1847.3,1.08217]
[1746206273073,5.32755806,1847.4,1847.3,1.08217]
[1746206273265,5.32755806,1847.4,1847.3,6.33917]
[1746206274068,5.32755806,1847.4,1847.3,47.13917]
[1746206276565,1.6286,1847.5,1847.4,1.08211]
[1746206276772,1.87641,1847.8,1847.7,1.08193]
[1746206276968,3.50501,1847.8,1847.7,4.28973]
[1746206277168,7.20101,1847.8,1847.7,4.28973]
[1746206278172,3.50498,1847.8,1847.7,3.2078]
[1746206279270,7.20098,1847.8,1847.7,4.28973]
[1746206279766,6.1191,1847.8,1847.7,5.87933]
[1746206281073,3.696,1847.8,1847.7,5.87933]
[1746206281271,2.78953,1847.9,1847.8,1.08188]
[1746206281767,1.7077,1847.9,1847.8,1.08188]
[1746206281973,0.8167,1848.0,1847.9,1.08182]
[1746206282274,0.8167,1848.0,1847.9,4.28962]
[1746206282671,2.4253,1848.2,1848.1,1.0817]
[1746206282968,2.4253,1848.2,1848.1,4.2895]
[1746206283161,6.1213,1848.2,1848.1,4.2895]
[1746206283363,6.1213,1848.2,1848.1,5.8946]
[1746206283562,7.20294,1848.2,1848.1,5.8946]
[1746206284265,5.2839,1848.2,1848.1,5.8946]
[1746206284663,6.36554,1848.2,1848.1,5.8946]
[1746206285267,6.36554,1848.2,1848.1,4.8129]
[1746206285465,5.2839,1848.2,1848.1,5.8946]
[1746206285774,4.77764,1848.2,1848.1,4.8129]
[1746206286166,1.08164,1848.2,1848.1,5.8946]
[1746206286665,1.08164,1848.2,1848.1,4.8129]
[1746206287067,2.81414,1848.2,1848.1,3.2078]